bitfinex-derivatives/quotes_ETHF0:USTF0_20251211
["timestamp","ask_amount","ask_price","bid_price","bid_amount"]
[1765426813828,2.0835,3194.3,3194.2,2.2308]
[1765426815826,2.0835,3194.3,3194.2,1.2511]
[1765426816330,1.0938,3194.3,3194.2,2.2308]
[1765426816932,2.0835,3194.3,3194.2,2.2308]
[1765426818323,2.0835,3194.3,3194.2,0.1565]
[1765426818519,2.0835,3194.3,3194.0,0.00469373]
[1765426818520,2.057,3194.1,3194.0,0.00469373]
[1765426818726,2.057,3193.6,3193.5,3.1970773]
[1765426818923,2.057,3193.6,3193.5,5.1598773]
[1765426819125,2.057,3193.6,3193.5,4.1801773]
[1765426819525,4.2751,3193.9,3193.8,1.9628]
[1765426819725,5.2648,3193.9,3193.8,0.9831]
[1765426819922,2.057,3193.6,3193.5,5.7496773]
[1765426820126,2.057,3193.6,3193.5,5.75437103]
[1765426820427,2.057,3193.6,3193.5,4.18803302]
[1765426821331,2.057,3193.6,3193.5,5.16773302]
[1765426821725,2.057,3193.6,3193.5,3.20493302]
[1765426822124,2.057,3193.6,3192.6,3.2078]
[1765426822325,2.057,3192.8,3192.7,2.11937]
[1765426822524,3.2078,3193.3,3192.7,2.11937]
[1765426822729,5.2648,3193.3,3193.2,1.9628]
[1765426823124,5.2648,3193.3,3193.2,1.96503077]
[1765426823333,5.26729002,3193.3,3193.2,0.98533077]
[1765426825632,5.26729002,3193.3,3193.2,1.96503077]
[1765426825835,3.21029002,3193.3,3193.2,1.96503077]
[1765426826230,0.00249002,3193.3,3193.2,1.96503077]
[1765426828027,0.14270137,3193.6,3193.5,2.5526]
[1765426828233,1.07199373,3194.2,3194.1,1.9167]
[1765426828428,2.01029373,3194.2,3194.1,1.9167]
[1765426829335,2.01270947,3194.2,3194.1,1.9167]
[1765426832034,0.00710947,3194.2,3194.1,1.9167]
[1765426832438,1.95560947,3194.2,3194.1,1.9167]
[1765426833338,1.95931002,3194.2,3194.1,0.9831]
[1765426833535,1.9485,3193.9,3193.8,2.01202]
[1765426834642,1.95931002,3194.2,3194.1,1.8555]
[1765426835144,1.02101002,3194.2,3194.1,1.8555]
[1765426835338,0.01081002,3194.2,3194.1,1.8555]
[1765426835737,1.02101002,3194.2,3194.1,1.8555]
[1765426835947,1.95931002,3194.2,3194.1,1.8555]
[1765426837138,1.95931002,3194.2,3194.1,0.9219]
[1765426837647,1.95931002,3194.2,3194.1,1.8555]
[1765426838041,0.01081002,3194.2,3194.1,1.8555]
[1765426838643,1.02101002,3194.2,3194.1,1.8555]
[1765426838847,0.01081002,3194.2,3194.1,1.8555]
[1765426840047,1.02101002,3194.2,3194.1,1.8555]
[1765426840548,1.02101002,3194.2,3194.1,2.01201]
[1765426841743,1.95931002,3194.2,3194.1,0.15651]
[1765426842743,0.01081002,3194.2,3194.1,2.01201]
[1765426843143,1.02101002,3194.2,3194.1,2.01201]
[1765426843344,1.95931002,3194.2,3194.1,2.01201]
[1765426845251,1.95931002,3194.2,3194.1,0.15651]
[1765426846447,1.95931002,3194.2,3194.1,1.07841]
[1765426846851,1.95931002,3194.2,3194.1,2.01201]
[1765426847152,0.01081002,3194.2,3194.1,2.01201]
[1765426849351,1.02101002,3194.2,3194.1,2.01201]
[1765426849657,1.95931002,3194.2,3194.1,2.01201]
[1765426851354,1.02101002,3194.2,3194.1,2.01201]
[1765426851554,0.01081002,3194.2,3194.1,2.01201]
[1765426854058,0.00710947,3194.2,3194.1,2.01201]
[1765426855353,1.95560947,3194.2,3194.1,1.07841]
[1765426855757,1.95560947,3194.2,3194.1,2.01201]
[1765426856362,0.00710947,3194.2,3194.1,2.01201]
[1765426856861,3.2078,3194.7,3194.6,1.8555]
[1765426857960,3.21018863,3194.7,3194.6,1.8555]
[1765426858759,3.21018863,3194.7,3194.6,2.01198]
[1765426860060,0.00238863,3194.7,3194.6,2.01198]
[1765426862366,1.86768863,3194.7,3194.6,2.01198]
[1765426862565,1.01258863,3194.7,3194.6,2.01198]
[1765426862865,0.00238863,3194.7,3194.6,2.01198]
[1765426867063,3.2078,3195.1,3195.0,2.43696]
[1765426867572,3.8236,3196.0,3195.5,2.2805]
[1765426867960,4.9712,3195.6,3195.5,1.72955524]
[1765426868566,4.1161,3195.6,3195.5,2.28405524]
[1765426868766,4.9712,3195.6,3195.5,0.89495524]
[1765426868962,3.2078,3195.6,3195.5,2.28405524]
[1765426869767,3.2078,3195.6,3195.5,2.44049524]
[1765426869963,0.00342105,3196.0,3195.5,2.44049524]
[1765426869964,4.97462105,3196.0,3195.9,1.726]
[1765426870964,5.44692105,3196.0,3195.9,0.8914]
[1765426871173,1.6721,3195.6,3195.5,1.87179524]
[1765426873067,4.8799,3195.6,3195.5,0.00355524]
[1765426873668,2.178,3195.5,3195.4,0.00469373]
[1765426874875,2.178,3195.5,3195.4,0.00852319]
[1765426875476,2.178,3195.5,3195.4,1.72032319]
[1765426875677,3.2078,3195.6,3195.4,1.72032319]
[1765426875678,3.2078,3195.6,3195.5,1.7118]
[1765426875970,4.0758,3195.6,3195.5,2.2053]
[1765426876170,3.2078,3195.6,3195.5,2.2053]
[1765426876568,4.0758,3195.6,3195.5,2.2053]
[1765426879071,3.2078,3195.6,3195.5,2.2053]
[1765426880085,4.8799,3195.6,3195.5,1.7118]
[1765426881784,3.2078,3195.6,3195.5,2.2053]
[1765426883078,3.21122105,3196.0,3195.5,2.36174]
[1765426883279,4.07922105,3196.0,3195.9,1.7118]
[1765426883881,4.88332105,3196.0,3195.9,1.7118]
[1765426884086,4.07922105,3196.0,3195.9,1.7118]
[1765426884787,5.22702105,3196.0,3195.9,0.828]
[1765426884988,1.6721,3195.9,3195.8,0.15642]
[1765426885888,1.6721,3195.9,3195.8,0.98442]
[1765426886383,2.1869,3195.5,3195.4,0.00852319]
[1765426886585,5.3947,3195.5,3195.4,0.00852319]
[1765426889488,5.3947,3195.5,3195.4,1.60912319]
[1765426889687,5.3947,3195.5,3195.4,0.00852319]
[1765426890381,5.3947,3195.5,3195.4,0.84202319]
[1765426890585,2.1869,3195.5,3195.4,3.21632319]
[1765426890786,0.82982105,3196.0,3195.9,1.6061]
[1765426891086,1.65792105,3196.0,3195.9,4.8139]
[1765426891286,0.00342105,3196.0,3195.9,4.8139]
[1765426891585,0.00342105,3196.0,3195.9,4.97032]
[1765426891984,0.82982105,3196.0,3195.9,4.97032]
[1765426892193,0.00342105,3196.0,3195.9,4.97032]
[1765426892592,1.65792105,3196.0,3195.9,4.97032]
[1765426893397,0.82982105,3196.0,3195.9,4.97032]
[1765426894795,0.00342105,3196.0,3195.9,4.97032]
[1765426895393,0.00342105,3196.0,3195.9,1.76252]
[1765426899303,0.82982105,3196.0,3195.9,1.76252]
[1765426899599,0.00342105,3196.0,3195.9,1.76252]
[1765426899789,0.8264,3195.6,3195.5,0.4658]
[1765426899993,1.6545,3195.6,3195.5,1.6061]
[1765426900193,2.1424,3195.5,3195.4,0.84202319]
[1765426900696,2.1424,3195.5,3195.4,1.61462319]
[1765426901194,1.6545,3195.5,3195.4,1.61462319]
[1765426903202,0.00342105,3196.0,3195.7,1.76253]
[1765426903397,0.00342105,3196.0,3195.9,1.6061]
[1765426903705,0.00342105,3196.0,3195.9,1.76252]
[1765426905903,0.00342105,3196.0,3195.6,3.2078]
[1765426905904,3.2078,3196.6,3196.5,2.20819]
[1765426906203,4.0342,3197.0,3196.9,1.6061]
[1765426906400,4.8623,3197.0,3196.9,1.6061]
[1765426906796,5.3502,3197.5,3197.4,1.6061]
[1765426907098,4.86632526,3197.5,3197.4,1.6061]
[1765426907298,1.65852526,3197.5,3197.4,1.6061]
[1765426907502,0.83042526,3197.5,3197.4,1.6061]
[1765426907999,0.00402526,3197.5,3197.4,1.6061]
[1765426908197,1.65852526,3197.5,3197.4,1.6061]
[1765426908598,0.00402526,3197.5,3197.4,1.6061]
[1765426908996,4.0342,3197.9,3197.8,1.6061]
[1765426909205,4.8623,3197.9,3197.8,1.6061]
[1765426909803,4.0342,3197.9,3197.8,1.6061]
[1765426910004,3.21171188,3197.9,3197.8,1.60911217]
[1765426910205,4.03811188,3197.9,3197.8,1.60911217]
[1765426910601,3.21171188,3197.9,3197.8,1.60911217]
[1765426911005,4.86621188,3197.9,3197.8,0.00301217]
[1765426912108,4.86621188,3197.9,3197.1,0.00469373]
[1765426912109,1.6545,3197.2,3197.1,0.00469373]
[1765426912309,4.8623,3197.2,3197.1,0.00469373]
[1765426913106,4.8623,3197.2,3197.1,0.00754295]
[1765426914811,0.8264,3196.3,3196.2,1.7625]
[1765426915510,3.2078,3196.8,3196.2,1.7625]
[1765426915706,4.86699373,3196.8,3196.7,0.8335]
[1765426915907,4.86699373,3196.8,3196.7,0.83629524]
[1765426916107,4.86699373,3196.8,3196.7,1.60889524]
[1765426916409,4.86699373,3196.8,3196.7,0.00279524]
[1765426916804,4.86699373,3196.8,3196.7,0.83629524]
[1765426918011,4.86699373,3196.8,3196.7,1.60889524]
[1765426918403,4.86699373,3196.8,3196.7,0.00279524]
[1765426921510,1.4641,3196.3,3196.2,0.00469373]
[1765426922612,1.4641,3196.3,3196.2,0.00808979]
[1765426923207,1.4641,3195.6,3195.5,0.89004]
[1765426923612,0.7292,3195.6,3195.5,1.60434]
[1765426923812,5.1045,3196.0,3195.9,0.7336]
[1765426924113,5.1045,3196.0,3195.5,0.60694]
[1765426924314,5.1082084,3196.0,3195.5,0.6104284]
[1765426924515,0.7292,3195.6,3195.5,2.0583284]
[1765426924710,0.7292,3195.6,3195.5,1.3440284]
[1765426924916,4.6719,3195.6,3195.5,0.0034884]
[1765426925707,3.2115084,3196.0,3195.5,1.9018884]
[1765426925917,0.00469373,3196.8,3196.7,0.7336]
[1765426925918,1.46879373,3196.8,3196.7,0.7336]
[1765426926125,1.46879373,3196.8,3196.2,3.3642]
[1765426926311,1.4641,3196.3,3196.2,1.6043]
[1765426926615,0.7292,3196.3,3196.2,1.6043]
[1765426926808,0.00469373,3196.8,3196.2,1.6043]
[1765426927009,0.00779454,3196.8,3196.2,1.6043]
[1765426927409,1.4641,3196.3,3196.2,1.6043]
[1765426928010,1.4641,3196.3,3196.2,0.1564]
[1765426929010,1.4641,3195.6,3195.5,1.9018884]
[1765426929515,5.1045,3196.0,3195.9,0.7336]
[1765426929820,5.1045,3196.0,3195.9,1.4479]
[1765426930018,5.1045,3196.0,3195.9,0.7336]
[1765426930222,1.4641,3195.7,3195.6,0.15643]
[1765426930715,1.4641,3195.7,3195.6,0.89003]
[1765426930921,1.4641,3195.7,3195.6,0.15643]
[1765426932218,1.4641,3195.7,3195.6,1.57813]
[1765426933022,1.4641,3195.7,3195.6,0.89003]
[1765426933517,1.4641,3195.7,3195.6,0.15643]
[1765426934417,1.4641,3195.7,3195.6,0.88233]
[1765426935322,1.4641,3195.7,3195.6,0.15643]
[1765426935519,1.4185,3195.6,3195.5,0.0034884]
[1765426935719,4.6263,3195.6,3195.5,0.0034884]
[1765426938613,3.2078,3195.6,3195.5,1.8485884]
[1765426938819,4.6263,3196.0,3195.9,1.414]
[1765426939018,1.4185,3195.9,3195.8,0.15642]
[1765426939218,1.4185,3195.9,3195.8,0.88232]
[1765426939423,1.4185,3195.9,3195.8,1.57042]
[1765426939925,1.4185,3195.9,3195.8,0.88232]
[1765426940423,1.4185,3195.9,3195.8,0.15642]
[1765426941424,1.4185,3195.9,3195.8,1.57042]
[1765426941624,1.4185,3195.9,3195.8,0.15642]
[1765426942718,1.4185,3195.6,3195.5,0.0034884]
[1765426942920,4.6263,3195.6,3195.5,0.0034884]
[1765426943422,1.4185,3194.5,3194.4,0.15649]
[1765426943628,1.8578,3194.5,3194.4,0.88239]
[1765426944332,1.42094766,3194.5,3194.4,1.57375256]
[1765426944828,0.68094766,3194.5,3194.4,1.57375256]
[1765426945620,1.42094766,3194.5,3194.4,1.57375256]
[1765426946029,0.68094766,3194.5,3194.4,1.57375256]
[1765426946226,0.00244766,3194.5,3194.4,1.57375256]
[1765426951533,0.74694766,3194.5,3194.4,1.57375256]
[1765426952434,0.00244766,3194.5,3194.4,1.57375256]
[1765426954830,0.74694766,3194.5,3194.4,1.57375256]
[1765426955432,0.00244766,3194.5,3194.4,1.57375256]
[1765426956737,0.74694766,3194.5,3194.4,1.57375256]
[1765426957136,0.00244766,3194.5,3194.4,1.57375256]
[1765426957529,1.88864766,3194.5,3194.4,0.15975256]
[1765426958035,1.88864766,3194.5,3194.4,0.88165256]
[1765426959331,5.09644766,3194.5,3194.4,0.15975256]
[1765426959533,1.4414,3194.2,3194.1,0.00469373]
[1765426959731,1.4414,3194.2,3194.1,1.43949373]
[1765426960630,1.4414,3194.2,3194.1,1.44271243]
[1765426960837,1.4414,3194.2,3194.1,0.72981243]
[1765426963543,1.4414,3194.2,3194.1,0.00791243]
[1765426964937,1.4414,3193.9,3193.3,3.2078]
[1765426965243,1.4414,3193.4,3193.3,1.4348]
[1765426965637,3.2078,3193.5,3193.1,0.15655]
[1765426965638,1.4414,3193.2,3193.1,0.15655]
[1765426965844,0.7445,3193.2,3193.1,1.59370726]
[1765426966442,3.2078,3193.5,3193.4,1.4348]
[1765426967155,4.6492,3193.5,3193.4,1.4348]
[1765426967449,5.0885,3194.0,3193.9,0.7219]
[1765426967638,6.21534125,3194.0,3193.9,0.7219]
[1765426967843,6.21534125,3194.0,3193.5,0.4483]
[1765426968048,0.7445,3193.6,3193.5,1.8831]
[1765426968245,1.4414,3193.6,3193.5,1.4348]
[1765426968445,4.6492,3193.6,3193.5,1.4348]
[1765426969049,1.8751,3193.5,3193.4,0.15654]
[1765426969250,1.4414,3193.2,3193.1,1.43715726]
[1765426969442,4.6492,3193.2,3193.1,1.43715726]
[1765426969647,4.6492,3193.2,3193.1,0.00235726]
[1765426970648,4.6492,3193.2,3193.1,1.43715726]
[1765426972546,4.6492,3193.2,3193.1,0.72425726]
[1765426973049,4.6492,3193.2,3193.1,1.43715726]
[1765426973553,4.6492,3193.2,3193.1,0.00235726]
[1765426975447,6.30273051,3193.2,3192.7,3.2078]
[1765426975653,1.4414,3192.9,3192.1,0.1566]
[1765426975858,1.4414,3192.9,3192.3,0.15659]
[1765426976548,1.4414,3192.9,3192.8,0.00712599]
[1765426979654,1.44510055,3192.9,3192.8,0.00712599]
[1765426979850,1.8508,3192.5,3192.4,0.15659]
[1765426980455,0.7445,3192.5,3192.4,1.62889]
[1765426980656,0.7445,3192.5,3192.0,0.4465]
[1765426980657,3.9051,3192.6,3192.5,2.07538]
[1765426980852,3.2078,3192.6,3192.5,2.07538]
[1765426981047,3.2078,3192.6,3192.5,2.07801864]
[1765426981448,3.9051,3192.6,3192.5,2.07801864]
[1765426981954,3.2078,3192.6,3192.5,2.07801864]
[1765426982454,3.9051,3192.6,3192.5,2.07801864]
[1765426982655,1.8271,3193.0,3192.9,1.4723]
[1765426982855,1.8271,3193.0,3192.9,0.7445]
[1765426983952,0.6973,3193.0,3192.9,1.4723]
[1765426986166,3.21249373,3193.2,3193.1,1.4723]
[1765426986762,0.00469373,3193.2,3193.1,1.62885]
[1765426987162,3.2078,3193.6,3193.5,2.07533]
[1765426988761,4.5901,3193.6,3193.5,0.15653]
[1765426989265,3.2078,3193.6,3193.5,2.07533]
[1765426989456,3.9051,3193.6,3193.5,2.07533]
[1765426989861,4.5901,3193.6,3193.5,2.07533]
[1765426990062,3.2078,3193.6,3193.5,2.07533]
[1765426990970,0.70199373,3193.9,3193.8,1.4388]
[1765426991465,1.45039373,3193.9,3193.8,1.4388]
[1765426991865,0.70199373,3193.9,3193.8,1.4388]
[1765426992472,0.00469373,3193.9,3193.8,1.59532]
[1765426993164,3.21024766,3194.5,3194.4,1.55309]
[1765426993561,4.69034766,3194.5,3194.4,1.55309]
[1765426993763,4.69034766,3194.5,3194.4,0.85879]
[1765426993962,5.09824766,3194.5,3194.4,0.85879]
[1765426994359,5.09824766,3194.5,3194.4,1.55309]
[1765426995561,0.00244766,3194.5,3194.4,1.55309]
[1765426996671,1.48254766,3194.5,3194.4,1.55309]
[1765426997573,1.4801,3194.2,3194.1,0.00469373]
[1765426998768,1.4801,3194.2,3194.1,0.70699373]
[1765426999073,0.7317,3194.2,3194.1,1.40129373]
[1765426999276,1.4801,3194.2,3194.1,1.40129373]
[1765426999773,0.7317,3194.2,3194.1,1.40129373]
[1765427000366,1.4801,3194.2,3194.1,1.40129373]
[1765427001679,1.4801,3194.2,3194.1,0.00469373]
[1765427001870,1.4801,3194.2,3194.1,0.70699373]
[1765427002069,1.4801,3194.2,3194.1,1.40129373]
[1765427002773,0.7317,3194.2,3194.1,1.40129373]
[1765427003178,3.61814766,3194.5,3194.1,1.40129373]
[1765427003179,5.09824766,3194.5,3194.4,0.7023]
[1765427003472,5.09824766,3194.5,3194.1,0.00469373]
[1765427003473,1.4801,3194.2,3194.1,0.00469373]
[1765427004069,1.4801,3194.2,3194.1,0.70699373]
[1765427004478,1.4801,3194.2,3194.1,0.00469373]
[1765427008275,1.4801,3194.2,3194.1,0.70699373]
[1765427008481,3.9447,3194.3,3194.2,1.4788]
[1765427008681,4.6562,3194.3,3194.2,1.4788]
[1765427009474,3.9447,3194.3,3194.2,1.6353]
[1765427009668,3.2078,3194.3,3194.2,1.6353]
[1765427009874,0.74060055,3194.4,3194.3,1.6353]
[1765427010068,0.73934766,3194.5,3194.4,1.63529]
[1765427010273,0.00244766,3194.5,3194.4,1.63529]
[1765427010879,0.73934766,3194.5,3194.4,1.63529]
[1765427011275,0.00244766,3194.5,3194.4,1.63529]
[1765427012478,0.73934766,3194.5,3194.4,1.63529]
[1765427013573,0.00244766,3194.5,3194.4,1.63529]
[1765427014176,0.00469373,3194.8,3194.7,1.63528]
[1765427015176,3.2078,3195.2,3195.1,1.63526]
[1765427015382,3.2078,3195.6,3195.5,2.06054]
[1765427016583,3.2113134,3195.6,3195.5,2.06054]
[1765427016978,4.6597134,3195.6,3195.5,0.90604]
[1765427017378,1.4484,3195.2,3195.1,0.00251924]
[1765427017578,4.6562,3195.2,3195.1,0.00251924]
[1765427018376,1.4484,3194.9,3194.8,0.15647]
[1765427019382,1.4484,3194.9,3194.8,0.15906695]
[1765427020184,4.6562,3194.9,3194.8,0.15906695]
[1765427021792,4.65990055,3194.9,3194.8,0.00259695]
[1765427023088,1.4484,3194.2,3194.1,0.16119373]
[1765427024389,1.4484,3194.2,3194.1,1.64320245]
[1765427024693,0.7369,3194.2,3194.1,1.64320245]
[1765427024886,5.095,3194.5,3194.4,1.4788]
[1765427025092,5.095,3194.5,3194.4,0.7496]
[1765427025294,5.095,3194.5,3194.1,1.64320245]
[1765427025295,1.4484,3194.2,3194.1,1.64320245]
[1765427026394,1.4484,3194.2,3194.1,0.16440245]
[1765427026896,1.4484,3194.2,3194.1,0.91400245]
[1765427027990,1.4484,3194.2,3194.1,0.16440245]
[1765427030792,1.4484,3194.2,3194.1,0.00790245]
[1765427031193,1.4484,3193.4,3193.3,0.15654]
[1765427031693,1.4484,3193.4,3193.3,1.63534]
[1765427031996,1.4484,3193.4,3193.3,0.90614]
[1765427032198,1.4484,3193.4,3193.3,0.15933426]
[1765427033888,1.4484,3193.4,3193.3,1.63813426]
[1765427036098,1.4484,3193.4,3193.3,0.90893426]
[1765427036300,1.4484,3193.4,3193.3,1.63813426]
[1765427036702,0.7369,3193.4,3193.3,1.63813426]
[1765427037101,1.4484,3193.4,3193.3,1.63813426]
[1765427037493,1.4484,3193.4,3193.3,0.90893426]
[1765427037698,1.4484,3193.4,3193.3,0.15933426]
[1765427038497,1.4484,3193.4,3193.3,0.90893426]
[1765427038698,1.4484,3193.4,3193.3,0.83763426]
[1765427040203,1.4484,3193.4,3193.3,1.52233426]
[1765427040504,1.4148,3193.4,3193.3,1.52233426]
[1765427041208,1.4148,3193.4,3193.3,0.15933426]
[1765427041508,1.4148,3193.4,3193.3,0.00279426]
[1765427042701,1.4148,3193.4,3193.3,0.68109426]
[1765427043908,1.4148,3193.4,3193.3,0.00279426]
[1765427044210,1.4148,3193.4,3193.3,0.68109426]
[1765427044606,1.4148,3193.4,3193.3,0.00279426]
[1765427044816,1.4148,3193.4,3193.3,0.68109426]
[1765427045510,1.4148,3193.4,3193.3,0.00279426]
[1765427048704,1.4148,3193.4,3193.3,0.68109426]
[1765427049214,1.4148,3193.4,3193.3,1.36579426]
[1765427049615,1.3686,3193.6,3193.5,1.7744]
[1765427049815,4.5764,3193.6,3193.5,0.6783]
[1765427050011,1.8054,3193.5,3193.4,0.83484]
[1765427050614,1.8054,3193.5,3193.4,0.15654]
[1765427052721,2.95604088,3193.5,3193.4,0.15654]
[1765427053519,1.3728,3193.4,3193.3,0.00279426]
[1765427054619,1.3728,3193.4,3193.3,0.73799426]
[1765427054923,1.3728,3193.4,3193.3,0.00279426]
[1765427058026,1.3728,3193.4,3193.3,0.73799426]
[1765427058527,2.52344088,3193.4,3193.3,1.46749426]
[1765427060330,2.52344088,3193.4,3193.3,0.00279426]
[1765427065334,3.65053438,3193.4,3193.3,0.00279426]
[1765427065632,1.4305,3192.6,3192.5,0.15658]
[1765427065835,5.78894088,3192.6,3192.5,0.15658]
[1765427066033,5.78894088,3192.6,3192.5,0.89178]
[1765427066335,5.78894088,3192.6,3192.5,0.15658]
[1765427066527,5.79290336,3192.6,3192.5,0.15930495]
[1765427067637,5.79290336,3192.6,3192.5,0.89450495]
[1765427068237,5.79290336,3192.6,3192.5,0.15930495]
[1765427068433,4.64226248,3192.6,3192.5,0.88750495]
[1765427068638,5.79290336,3192.6,3192.5,0.88750495]
[1765427068835,5.79290336,3192.6,3192.5,0.15930495]
[1765427070236,5.79290336,3192.6,3192.5,0.00272495]
[1765427070442,1.3925,3191.9,3191.8,0.15662]
[1765427070733,1.15064088,3192.2,3191.8,1.56862]
[1765427070935,1.3925,3192.2,3192.1,1.412]
[1765427071335,1.3925,3192.2,3192.1,1.41601684]
[1765427071835,0.7015,3192.2,3192.1,1.41601684]
[1765427072040,3.9093,3192.3,3192.2,1.412]
[1765427072540,5.05994088,3192.3,3192.2,1.412]
[1765427072740,5.75094088,3192.3,3192.2,1.412]
[1765427073439,3.9093,3192.3,3192.2,1.412]
[1765427073634,5.05994088,3192.3,3192.2,1.412]
[1765427073833,5.75094088,3192.3,3192.2,1.412]
[1765427074938,5.75094088,3192.3,3192.2,0.7282]
[1765427075535,5.05994088,3192.3,3192.2,1.412]
[1765427075738,0.7015,3192.3,3192.2,1.5686]
[1765427076047,2.54314088,3192.5,3192.4,1.412]
[1765427076937,6.16114088,3192.5,3192.4,0.7282]
[1765427077139,1.3925,3192.3,3192.2,1.5686]
[1765427077535,0.7015,3192.3,3192.2,1.5686]
[1765427077740,4.76864088,3192.5,3192.1,0.00401684]
[1765427077741,3.2078,3192.5,3192.4,1.56859]
[1765427078044,0.00396248,3192.6,3192.5,2.00128]
[1765427078238,0.70546248,3192.6,3192.5,2.00128]
[1765427078542,0.00396248,3192.6,3192.5,2.00128]
[1765427080939,0.00396248,3192.6,3192.5,3.15192088]
[1765427082246,0.7015,3193.4,3193.3,1.56854]
[1765427082445,1.3925,3193.4,3193.3,1.56854]
[1765427083438,0.70384338,3193.4,3193.3,1.56854]
[1765427083639,0.00234338,3193.4,3193.3,1.56854]
[1765427086742,1.15064088,3194.1,3193.2,1.15064088]
[1765427086743,1.3925,3194.3,3194.2,1.412]
[1765427087042,0.7015,3194.4,3194.3,1.56849]
[1765427087350,4.6003,3194.7,3194.6,1.412]
[1765427087544,2.54314088,3194.9,3194.8,1.412]
[1765427087744,0.00346255,3194.9,3194.8,1.57203123]
[1765427094858,0.7015,3195.6,3195.5,1.1609]
[1765427095055,5.0105,3196.0,3195.9,0.7282]
[1765427095255,1.3925,3195.6,3195.5,2.00114]
[1765427095459,1.3925,3195.6,3195.5,1.56844]
[1765427095858,1.39566735,3195.6,3195.5,1.56844]
[1765427096056,0.4102,3195.0,3194.9,3.2078]
[1765427096255,1.3925,3194.9,3194.8,0.00356123]
[1765427096553,1.3925,3194.2,3194.1,3.3643]
[1765427096758,1.3925,3194.2,3194.1,3.2078]
[1765427097160,1.3925,3193.5,3193.4,1.56854]
[1765427097355,1.3925,3193.5,3193.4,1.57093242]
[1765427097952,0.7015,3193.5,3193.4,1.57093242]
[1765427098764,1.3925,3193.5,3193.4,1.57093242]
[1765427100661,1.8276,3193.5,3193.4,0.15893242]
[1765427100861,1.407,3193.2,3193.1,0.00469373]
[1765427101567,1.407,3193.2,3193.1,0.74339373]
[1765427101859,1.40930108,3193.2,3193.1,0.74567065]
[1765427102759,1.40930108,3193.2,3193.1,0.00697065]
[1765427103667,1.40930108,3193.2,3193.1,1.45627065]
[1765427103965,1.40930108,3193.2,3193.1,0.74567065]
[1765427104165,0.00230108,3193.2,3193.1,1.45627065]
[1765427104367,0.69190108,3193.2,3193.1,1.45627065]
[1765427104556,0.00230108,3193.2,3193.1,1.61282065]
[1765427105056,0.69190108,3193.2,3193.1,1.61282065]
[1765427105261,0.00230108,3193.2,3193.1,1.61282065]
[1765427107968,0.69190108,3193.2,3193.1,1.61282065]
[1765427108663,1.40930108,3193.2,3193.1,0.16352065]
[1765427109559,1.41300163,3193.2,3193.1,0.00697065]
[1765427112672,1.41300163,3193.2,3193.1,0.72807065]
[1765427113468,1.41300163,3193.2,3193.1,1.58362065]
[1765427113762,0.69560163,3193.2,3193.1,1.58362065]
[1765427115068,0.00230108,3193.2,3193.1,1.58362065]
[1765427116074,0.00230108,3193.2,3193.1,4.79142065]
[1765427117674,0.71249373,3193.8,3193.7,1.4201]
[1765427118672,0.71534109,3193.8,3193.7,1.4201]
[1765427119378,0.00754109,3193.8,3193.7,1.4201]
[1765427119573,0.00754109,3193.8,3193.7,1.57662]
[1765427122579,0.71534109,3193.8,3193.7,1.57662]
[1765427123173,1.40574109,3193.8,3193.7,1.57662]
[1765427124776,1.40574109,3193.8,3193.7,0.87762]
[1765427125882,1.40574109,3193.8,3193.7,1.57662]
[1765427126580,1.40574109,3193.8,3193.7,0.15652]
[1765427126780,1.3982,3193.2,3193.1,1.42707065]
[1765427127181,1.3982,3193.2,3193.1,1.58362065]
[1765427127381,0.4292,3193.5,3193.2,0.15655]
[1765427127582,1.8274,3193.5,3193.4,1.4201]
[1765427128187,0.7078,3193.5,3193.4,1.57664]
[1765427128581,3.9156,3193.5,3193.4,1.57664]
[1765427128780,4.6594,3193.5,3193.4,1.57664]
[1765427130689,3.9156,3193.5,3193.4,1.57664]
[1765427130889,0.7078,3193.5,3193.4,1.57664]
[1765427132592,3.9156,3193.5,3193.4,1.57664]
[1765427132888,4.6594,3193.5,3193.4,1.57664]
[1765427133392,0.00754109,3193.8,3193.7,1.4428]
[1765427133586,0.00754109,3193.8,3193.7,1.59932]
[1765427133789,3.2078,3194.3,3194.0,0.4194]
[1765427133985,4.6763,3194.8,3194.7,0.7518]
[1765427134189,4.6763,3194.8,3194.7,1.4428]
[1765427134190,3.9325,3194.8,3194.7,1.4428]
[1765427134388,4.6763,3194.8,3194.7,1.4428]
[1765427134588,4.6763,3194.8,3194.7,0.691]
[1765427134987,4.67935679,3194.8,3194.7,0.691]
[1765427135496,4.67935679,3194.8,3194.7,0.84748]
[1765427135883,4.67935679,3194.8,3194.7,0.15648]
[1765427136192,4.67935679,3194.8,3194.7,1.59928]
[1765427137296,0.00305679,3194.8,3194.7,1.59928]
[1765427139606,0.72775679,3194.8,3194.7,1.59928]
[1765427139803,1.47155679,3194.8,3194.7,0.15648]
[1765427140310,1.47155679,3194.8,3194.7,0.84748]
[1765427141107,1.47155679,3194.8,3194.7,0.15648]
[1765427142717,1.47155679,3194.8,3194.7,0.84748]
[1765427142904,1.47155679,3194.8,3194.7,1.59928]
[1765427143608,1.47155679,3194.8,3194.7,0.15648]
[1765427144206,1.47155679,3194.8,3194.7,0.84748]
[1765427144412,1.47155679,3194.8,3194.7,1.59928]
[1765427144611,0.72775679,3194.8,3194.7,1.59928]
[1765427144813,1.47155679,3194.8,3194.7,1.59928]
[1765427145111,0.72775679,3194.8,3194.7,1.59928]
[1765427145512,1.47155679,3194.8,3194.7,1.59928]
[1765427146114,0.72775679,3194.8,3194.7,1.59928]
[1765427146308,0.00305679,3194.8,3194.7,1.59928]
[1765427148818,0.7247,3195.5,3195.4,0.7518]
[1765427149014,0.7247,3195.5,3195.4,1.4428]
[1765427149713,1.4715988,3195.5,3195.4,1.4428]
[1765427149917,1.4715988,3195.5,3195.4,1.44631384]
[1765427151520,1.4715988,3195.5,3195.4,1.60275384]
[1765427152017,0.7277988,3195.5,3195.4,1.60275384]
[1765427152810,0.00469373,3195.8,3195.6,1.4428]
[1765427153016,3.73e-06,3195.8,3195.7,1.59923]